[Event "Open Mancomunitat de la Ribera Alta (Sumacàrcer)"]
[Site "Sumacàrcer, Spain"]
[Date "2018.11.18"]
[Round "5.5"]
[White "Granero Roca, Antonio"]
[Black "Pedros Viudes, Santiago"]
[Result "1-0"]
[TimeControl "5m+3s"]
[WhiteElo "2372"]
[BlackElo "2009"]

1. d4 {[%clk 00:05:04]} {[%emt 00:00:28]} Nf6 {[%clk 00:05:04]} 2. c4 {[%clk
00:05:06]} e5 {[%clk 00:05:01]} {[%emt 00:00:05]} 3. dxe5 {[%clk 00:05:06]} Ne4
{[%clk 00:05:03]} 4. Nf3 {[%clk 00:04:59]} Nc6 {[%clk 00:05:04]} 5. e3 {[%clk
00:04:57]} {[%emt 00:00:07]} Bb4+ {[%clk 00:05:02]} {[%emt 00:00:03]} 6. Bd2
{[%clk 00:04:57]} Nxd2 {[%clk 00:04:57]} {[%emt 00:00:12]} 7. Nbxd2 {[%clk
00:04:58]} {[%emt 00:00:03]} Qe7 {[%clk 00:04:59]} 8. a3 {[%clk 00:04:59]}
Bxd2+ {[%clk 00:04:58]} {[%emt 00:00:04]} 9. Qxd2 {[%clk 00:05:00]} Nxe5 {[%clk
00:04:52]} {[%emt 00:00:11]} 10. Be2 {[%clk 00:05:01]} O-O {[%clk 00:04:42]}
{[%emt 00:00:10]} 11. O-O {[%clk 00:05:00]} {[%emt 00:00:13]} d6 {[%clk
00:04:26]} {[%emt 00:00:14]} 12. Rac1 {[%clk 00:04:48]} {[%emt 00:00:11]} Bg4
{[%clk 00:03:44]} {[%emt 00:00:45]} 13. Nxe5 {[%clk 00:04:48]} {[%emt
00:00:36]} Bxe2 {[%clk 00:03:40]} 14. Qxe2 {[%clk 00:04:37]} {[%emt 00:00:04]}
dxe5 {[%clk 00:03:27]} {[%emt 00:00:06]} 15. h3 {[%clk 00:04:33]} {[%emt
00:00:04]} Rfd8 {[%clk 00:03:09]} {[%emt 00:00:37]} 16. Rfd1 {[%clk 00:04:33]}
h6 {[%clk 00:03:03]} {[%emt 00:00:04]} 17. Qg4 {[%clk 00:04:24]} {[%emt
00:00:05]} c6 {[%clk 00:02:46]} {[%emt 00:00:17]} 18. Qf5 {[%clk 00:04:19]}
{[%emt 00:00:09]} f6 {[%clk 00:02:11]} {[%emt 00:00:36]} 19. b4 {[%clk
00:04:16]} {[%emt 00:00:06]} Rxd1+ {[%clk 00:02:13]} {[%emt 00:00:20]} 20. Rxd1
{[%clk 00:04:18]} Rd8 {[%clk 00:02:05]} {[%emt 00:00:08]} 21. Rxd8+ {[%clk
00:04:10]} Qxd8 {[%clk 00:02:07]} 22. h4 {[%clk 00:04:10]} Kf7 {[%clk
00:01:41]} {[%emt 00:00:31]} 23. h5 {[%clk 00:04:07]} {[%emt 00:00:06]} Qe7
{[%clk 00:01:27]} {[%emt 00:00:20]} 24. Qc8 {[%clk 00:03:51]} {[%emt 00:00:14]}
g6 {[%clk 00:01:09]} {[%emt 00:00:22]} 25. Qh8 {[%clk 00:03:33]} {[%emt
00:00:35]} gxh5 {[%clk 00:00:50]} {[%emt 00:00:07]} 26. Qxh6 {[%clk 00:03:34]}
{[%emt 00:00:10]} Ke6 {[%clk 00:00:30]} {[%emt 00:00:14]} 27. Qxh5 {[%clk
00:03:31]} {[%emt 00:00:06]} a5 {[%clk 00:00:30]} {[%emt 00:00:14]} 28. Qg4+
{[%clk 00:03:27]} {[%emt 00:00:04]} Kd6 {[%clk 00:00:31]} 29. c5+ {[%clk
00:03:28]} Kc7 {[%clk 00:00:32]} {[%emt 00:00:03]} 30. Qc4 {[%clk 00:03:13]}
{[%emt 00:00:13]} axb4 {[%clk 00:00:34]} {[%emt 00:00:19]} 31. axb4 {[%clk
00:03:15]} Qh7 {[%clk 00:00:33]} 32. g3 {[%clk 00:03:06]} {[%emt 00:00:04]} b6
{[%clk 00:00:19]} {[%emt 00:00:13]} 33. cxb6+ {[%clk 00:02:50]} {[%emt
00:00:18]} Kxb6 {[%clk 00:00:22]} 34. Kg2 {[%clk 00:02:51]} {[%emt 00:00:16]}
Qf5 {[%clk 00:00:20]} 35. e4 {[%clk 00:02:40]} {[%emt 00:00:12]} Qd7 {[%clk
00:00:14]} {[%emt 00:00:08]} 36. Qc5+ {[%clk 00:02:38]} {[%emt 00:00:08]} Kb7
{[%clk 00:00:15]} {[%emt 00:00:03]} 37. Kf3 {[%clk 00:02:19]} {[%emt 00:00:17]}
Qd3+ {[%clk 00:00:15]} {[%emt 00:00:12]} 38. Qe3 {[%clk 00:02:15]} {[%emt
00:00:15]} Qd6 {[%clk 00:00:17]} 39. Qc3 {[%clk 00:02:14]} Kb6 {[%clk
00:00:19]} 40. Qc4 {[%clk 00:02:09]} Qd1+ {[%clk 00:00:20]} 41. Kg2 {[%clk
00:02:11]} Qd6 {[%clk 00:00:20]} {[%emt 00:00:11]} 42. Kh3 {[%clk 00:01:47]}
{[%emt 00:00:15]} Qd7+ {[%clk 00:00:23]} {[%emt 00:00:16]} 43. Kh4 {[%clk
00:01:39]} Qh7+ {[%clk 00:00:24]} 44. Kg4 {[%clk 00:01:41]} Qg6+ {[%clk
00:00:25]} {[%emt 00:00:03]} 45. Kf3 {[%clk 00:01:42]} {[%emt 00:00:08]} Qh5+
{[%clk 00:00:20]} {[%emt 00:00:04]} 46. Kg2 {[%clk 00:01:42]} {[%emt 00:00:04]}
Qg6 {[%clk 00:00:21]} 47. f3 {[%clk 00:01:34]} {[%emt 00:00:16]} Qg5 {[%clk
00:00:22]} 48. Qc5+ {[%clk 00:01:28]} {[%emt 00:00:09]} Kb7 {[%clk 00:00:24]}
49. Qc3 {[%clk 00:01:21]} {[%emt 00:00:12]} Kb6 {[%clk 00:00:25]} 50. Kf2
{[%clk 00:01:21]} Qh5 {[%clk 00:00:23]} {[%emt 00:00:05]} 51. Kg2 {[%clk
00:01:05]} {[%emt 00:00:18]} Qg5 {[%clk 00:00:25]} {[%emt 00:00:04]} 52. Qc2
{[%clk 00:00:54]} {[%emt 00:00:10]} Qg6 {[%clk 00:00:11]} {[%emt 00:00:24]} 53.
Qc5+ {[%clk 00:00:54]} Kb7 {[%clk 00:00:14]} 54. b5 {[%clk 00:00:52]} cxb5
{[%clk 00:00:16]} 55. Qxb5+ Kc7 {[%emt 00:00:09]} 56. Qc5+ {[%clk 00:00:55]}
Kd7 {[%clk 00:00:21]} 57. Qd5+ {[%emt 00:00:08]} Ke7 58. Qd2 {[%clk 00:00:58]}
Qf7 {[%clk 00:00:23]} 59. Qb4+ {[%clk 00:00:56]} {[%emt 00:00:03]} Kd8 {[%clk
00:00:13]} {[%emt 00:00:23]} 60. Qb8+ {[%clk 00:00:55]} Kd7 {[%clk 00:00:14]}
61. Qb7+ {[%clk 00:00:56]} Ke6 {[%clk 00:00:16]} 62. Qxf7+ {[%clk 00:00:53]}
{[%emt 00:00:04]} Kxf7 {[%clk 00:00:18]} 63. Kh3 {[%clk 00:00:55]} Kg6 {[%clk
00:00:15]} {[%emt 00:00:07]} 64. Kg4 {[%clk 00:00:57]} 1-0

[Event "Open Mancomunitat de la Ribera Alta (Sumacàrcer)"]
[Site "Sumacàrcer, Spain"]
[Date "2018.11.18"]
[Round "5.6"]
[White "Barbero Verdu, Francisco"]
[Black "Galvan, Jesus"]
[Result "0-1"]
[TimeControl "5m+3s"]
[WhiteElo "2043"]
[BlackElo "2254"]

1. c4 {[%clk 00:05:06]} e5 {[%clk 00:05:05]} {[%emt 00:00:11]} 2. Nc3 {[%clk
00:05:08]} Nc6 {[%clk 00:05:07]} 3. g3 {[%clk 00:05:10]} Bc5 {[%clk 00:05:09]}
4. Bg2 {[%clk 00:05:12]} {[%emt 00:00:04]} a6 {[%clk 00:05:12]} 5. e3 {[%clk
00:05:14]} d6 {[%clk 00:05:14]} 6. Nge2 {[%clk 00:05:16]} Ba7 {[%clk 00:05:16]}
7. O-O {[%clk 00:05:16]} {[%emt 00:00:04]} h5 {[%clk 00:05:18]} 8. h4 {[%clk
00:05:18]} g5 {[%clk 00:05:15]} {[%emt 00:00:08]} 9. hxg5 {[%clk 00:05:18]} h4
{[%clk 00:05:18]} 10. d4 {[%clk 00:05:14]} {[%emt 00:00:11]} hxg3 {[%clk
00:05:19]} {[%emt 00:00:03]} 11. Nxg3 {[%clk 00:05:16]} Qxg5 {[%clk 00:04:58]}
{[%emt 00:00:51]} 12. d5 {[%clk 00:05:12]} Qh4 {[%clk 00:04:38]} {[%emt
00:00:06]} 13. Re1 {[%clk 00:05:14]} Nce7 {[%clk 00:04:21]} {[%emt 00:00:25]}
14. e4 {[%clk 00:05:05]} {[%emt 00:00:07]} Qxg3 {[%clk 00:04:18]} {[%emt
00:00:04]} 15. Be3 {[%clk 00:05:04]} Qh2+ {[%clk 00:04:09]} {[%emt 00:00:10]}
16. Kf1 {[%clk 00:05:06]} Bh3 {[%clk 00:04:11]} {[%emt 00:00:10]} 17. Qf3
{[%clk 00:05:08]} Qh1+ {[%clk 00:04:04]} {[%emt 00:00:22]} 0-1

[Event "Open Mancomunitat de la Ribera Alta (Sumacàrcer)"]
[Site "Sumacàrcer, Spain"]
[Date "2018.11.18"]
[Round "5.7"]
[White "Cortes Marti, Javier"]
[Black "Gavarrete, Nahun"]
[Result "0-1"]
[TimeControl "5m+3s"]
[WhiteElo "2027"]
[BlackElo "2200"]

1. d4 {[%clk 00:05:04]} {[%emt 00:00:05]} c5 {[%clk 00:05:05]} 2. d5 {[%clk
00:05:06]} {[%emt 00:00:05]} Nf6 {[%clk 00:05:06]} 3. c4 {[%clk 00:05:08]} d6
{[%clk 00:05:08]} {[%emt 00:00:05]} 4. Nc3 {[%clk 00:05:11]} g6 {[%clk
00:05:10]} 5. e4 {[%clk 00:05:12]} Bg7 {[%clk 00:05:12]} 6. f3 {[%clk
00:05:14]} {[%emt 00:00:05]} O-O {[%clk 00:05:13]} 7. Be3 {[%clk 00:05:15]} e6
{[%clk 00:05:14]} 8. Bd3 {[%clk 00:05:09]} {[%emt 00:00:12]} exd5 {[%clk
00:05:15]} {[%emt 00:00:04]} 9. cxd5 {[%clk 00:05:11]} a6 {[%clk 00:05:17]} 10.
a4 {[%clk 00:05:13]} {[%emt 00:00:04]} Re8 {[%clk 00:05:18]} 11. Nge2 {[%clk
00:05:12]} {[%emt 00:00:04]} Nbd7 {[%clk 00:05:18]} 12. O-O {[%clk 00:05:03]}
{[%emt 00:00:13]} Rb8 {[%clk 00:05:20]} 13. a5 {[%clk 00:04:57]} {[%emt
00:00:11]} b5 {[%clk 00:05:15]} {[%emt 00:00:04]} 14. axb6 {[%clk 00:04:59]}
{[%emt 00:00:10]} Rxb6 {[%clk 00:05:17]} 15. Qd2 {[%clk 00:04:58]} Ne5 {[%clk
00:05:11]} {[%emt 00:00:07]} 16. Rfb1 {[%clk 00:04:56]} {[%emt 00:00:05]} Nfd7
{[%clk 00:04:51]} {[%emt 00:00:23]} 17. Bf2 {[%clk 00:04:43]} {[%emt 00:00:16]}
Nxd3 {[%clk 00:04:42]} {[%emt 00:00:15]} 18. Qxd3 {[%clk 00:04:45]} Ne5 {[%clk
00:04:43]} 19. Qc2 {[%clk 00:04:41]} {[%emt 00:00:11]} f5 {[%clk 00:04:36]}
{[%emt 00:00:06]} 20. Ra4 {[%clk 00:04:10]} {[%emt 00:00:40]} Bd7 {[%clk
00:04:37]} 21. Ra2 {[%clk 00:04:05]} {[%emt 00:00:05]} fxe4 {[%clk 00:04:38]}
{[%emt 00:00:05]} 22. Nxe4 {[%clk 00:03:59]} {[%emt 00:00:05]} Bb5 {[%clk
00:04:40]} {[%emt 00:00:05]} 23. Nc1 {[%clk 00:03:54]} {[%emt 00:00:07]} Qa8
{[%clk 00:04:17]} {[%emt 00:00:23]} 24. b4 {[%clk 00:03:56]} Qxd5 {[%clk
00:04:11]} {[%emt 00:00:16]} 25. bxc5 {[%clk 00:03:51]} {[%emt 00:00:05]} dxc5
{[%clk 00:04:09]} {[%emt 00:00:05]} 26. Nxc5 {[%clk 00:03:12]} {[%emt
00:00:43]} Rc6 {[%clk 00:03:48]} {[%emt 00:00:21]} 27. N1b3 {[%clk 00:03:08]}
{[%emt 00:00:12]} Bd3 {[%clk 00:02:44]} {[%emt 00:01:02]} 28. Qd2 {[%clk
00:02:52]} {[%emt 00:00:17]} Bh6 {[%clk 00:02:44]} {[%emt 00:00:05]} 29. Qd1
{[%clk 00:02:48]} {[%emt 00:00:10]} Rd8 {[%clk 00:02:33]} {[%emt 00:00:10]} 30.
Nxd3 {[%clk 00:02:13]} {[%emt 00:00:39]} Nxd3 {[%clk 00:02:34]} 31. Qe2 {[%clk
00:02:01]} {[%emt 00:00:16]} Nxf2 {[%clk 00:01:58]} {[%emt 00:00:39]} 32. Kxf2
{[%clk 00:02:01]} {[%emt 00:00:05]} Rc3 {[%clk 00:01:47]} {[%emt 00:00:13]} 33.
Na1 {[%clk 00:01:19]} {[%emt 00:00:45]} Be3+ {[%clk 00:01:21]} {[%emt
00:00:29]} 34. Kf1 {[%clk 00:01:21]} Rdc8 {[%clk 00:01:12]} {[%emt 00:00:13]}
35. Rc2 {[%clk 00:01:13]} {[%emt 00:00:10]} a5 {[%clk 00:00:26]} {[%emt
00:00:50]} 36. Rxc3 {[%clk 00:00:53]} {[%emt 00:00:26]} Rxc3 {[%clk 00:00:28]}
37. Nc2 {[%clk 00:00:54]} Bg5 {[%clk 00:00:16]} {[%emt 00:00:15]} 38. Rb8+
{[%clk 00:00:48]} {[%emt 00:00:11]} Kg7 {[%clk 00:00:18]} 39. Rb5 {[%clk
00:00:38]} {[%emt 00:00:11]} Qd8 {[%clk 00:00:11]} {[%emt 00:00:15]} 40. Rb7+
{[%clk 00:00:25]} {[%emt 00:00:15]} Kh6 {[%clk 00:00:13]} 41. Rb2 {[%clk
00:00:15]} {[%emt 00:00:10]} a4 {[%clk 00:00:15]} 42. g3 {[%clk 00:00:15]}
{[%emt 00:00:05]} Qc8 {[%clk 00:00:16]} {[%emt 00:00:05]} 43. Kg2 {[%clk
00:00:14]} {[%emt 00:00:05]} a3 {[%clk 00:00:18]} 44. Ra2 {[%clk 00:00:14]} Qc7
{[%clk 00:00:17]} {[%emt 00:00:05]} 45. Nd4 {[%clk 00:00:13]} {[%emt 00:00:05]}
Re3 {[%clk 00:00:15]} {[%emt 00:00:05]} 46. Qf2 {[%clk 00:00:11]} {[%emt
00:00:05]} Qe5 {[%clk 00:00:16]} {[%emt 00:00:04]} 47. Nc6 {[%clk 00:00:09]}
{[%emt 00:00:04]} Qe6 {[%clk 00:00:15]} {[%emt 00:00:05]} 48. Nd4 {[%clk
00:00:11]} Qc4 {[%clk 00:00:12]} 49. Rd2 {[%clk 00:00:07]} {[%emt 00:00:09]} a2
{[%clk 00:00:09]} {[%emt 00:00:07]} 50. h4 {[%clk 00:00:06]} {[%emt 00:00:05]}
a1=Q {[%clk 00:00:08]} {[%emt 00:00:10]} 51. hxg5+ {[%clk 00:00:06]} {[%emt
00:00:05]} Kg7 {[%clk 00:00:10]} {[%emt 00:00:04]} 52. Qxe3 {[%emt 00:00:10]}
Qcf1+ {[%emt 00:00:04]} 53. Kh2 Qh1# {[%emt 00:00:04]} 0-1

[Event "Open Mancomunitat de la Ribera Alta (Sumacàrcer)"]
[Site "Sumacàrcer, Spain"]
[Date "2018.11.18"]
[Round "6.1"]
[White "Torres Sanchez, Jose"]
[Black "Plaskett, H James"]
[Result "1-0"]
[TimeControl "5m+3s"]
[WhiteElo "2183"]
[BlackElo "2490"]

1. e4 {[%clk 00:05:05]} c5 {[%clk 00:05:04]} {[%emt 00:00:31]} 2. Nf3 {[%clk
00:05:06]} Nc6 {[%clk 00:05:06]} 3. d4 {[%clk 00:05:01]} {[%emt 00:00:04]} cxd4
{[%clk 00:05:07]} 4. Nxd4 {[%clk 00:05:03]} e6 {[%clk 00:05:09]} 5. Nc3 {[%clk
00:05:04]} Qc7 {[%clk 00:05:11]} 6. g3 {[%clk 00:05:03]} d6 {[%clk 00:05:12]}
{[%emt 00:00:03]} 7. Bg2 {[%clk 00:05:04]} Bd7 {[%clk 00:05:14]} 8. O-O {[%clk
00:05:05]} a6 {[%clk 00:05:00]} {[%emt 00:00:15]} 9. Re1 {[%clk 00:05:00]}
{[%emt 00:00:10]} Be7 {[%clk 00:05:02]} 10. a4 {[%clk 00:04:49]} {[%emt
00:00:23]} Nf6 {[%clk 00:04:51]} {[%emt 00:00:04]} 11. Nb3 {[%clk 00:04:48]}
{[%emt 00:00:03]} b6 {[%clk 00:04:48]} {[%emt 00:00:06]} 12. Be3 {[%clk
00:04:25]} {[%emt 00:00:24]} O-O {[%clk 00:04:44]} {[%emt 00:00:09]} 13. h3
{[%clk 00:04:16]} {[%emt 00:00:09]} Ne5 {[%clk 00:04:25]} {[%emt 00:00:42]} 14.
a5 {[%clk 00:03:49]} {[%emt 00:00:11]} b5 {[%clk 00:04:17]} {[%emt 00:00:15]}
15. Bb6 {[%clk 00:03:37]} {[%emt 00:00:10]} Qb8 {[%clk 00:04:06]} {[%emt
00:00:16]} 16. Nd2 {[%clk 00:03:26]} {[%emt 00:00:14]} Bc6 {[%clk 00:03:40]}
{[%emt 00:00:37]} 17. f4 {[%clk 00:02:53]} {[%emt 00:00:26]} b4 {[%clk
00:03:27]} {[%emt 00:00:17]} 18. fxe5 {[%clk 00:02:49]} {[%emt 00:00:11]} bxc3
{[%clk 00:03:28]} {[%emt 00:00:05]} 19. exf6 {[%clk 00:02:48]} cxd2 {[%clk
00:03:29]} {[%emt 00:00:04]} 20. Qxd2 {[%clk 00:02:42]} {[%emt 00:00:05]} gxf6
{[%clk 00:02:00]} {[%emt 00:01:29]} 21. c4 {[%clk 00:02:30]} {[%emt 00:00:30]}
Kh8 {[%clk 00:01:49]} {[%emt 00:00:07]} 22. Bd4 {[%clk 00:01:56]} {[%emt
00:00:30]} Rg8 {[%clk 00:01:48]} {[%emt 00:00:16]} 23. Ra3 {[%clk 00:01:07]}
{[%emt 00:00:40]} Rg6 {[%clk 00:01:48]} {[%emt 00:00:20]} 24. e5 {[%clk
00:01:02]} dxe5 {[%clk 00:01:23]} {[%emt 00:00:22]} 25. Bxc6 {[%clk 00:00:59]}
{[%emt 00:00:05]} Bxa3 {[%clk 00:00:48]} {[%emt 00:00:36]} 26. Bf2 {[%clk
00:00:47]} {[%emt 00:00:18]} Bb4 {[%clk 00:00:41]} {[%emt 00:00:09]} 27. Qe2
{[%clk 00:00:28]} {[%emt 00:00:19]} Bxe1 {[%clk 00:00:40]} {[%emt 00:00:11]} 28.
Qxe1 {[%clk 00:00:30]} Qc8 {[%clk 00:00:39]} {[%emt 00:00:14]} 29. Be4 {[%clk
00:00:27]} Qxc4 {[%clk 00:00:37]} 30. Bxa8 {[%clk 00:00:27]} Qb3 {[%clk
00:00:26]} {[%emt 00:00:45]} 31. Qd2 {[%clk 00:00:21]} Kg7 {[%clk 00:00:22]}
{[%emt 00:00:08]} 32. Kg2 {[%clk 00:00:20]} h5 {[%clk 00:00:22]} 33. Be4 {[%clk
00:00:19]} f5 {[%clk 00:00:24]} 34. Bf3 {[%clk 00:00:17]} e4 {[%clk 00:00:25]}
{[%emt 00:00:04]} 35. Bxh5 {[%clk 00:00:17]} e3 {[%clk 00:00:17]} {[%emt
00:00:11]} 36. Bxe3 {[%clk 00:00:17]} Rf6 {[%clk 00:00:17]} {[%emt 00:00:03]}
37. Bd4 {[%clk 00:00:18]} Qd5+ {[%clk 00:00:19]} {[%emt 00:00:09]} 38. Kh2
{[%clk 00:00:19]} Kh7 {[%clk 00:00:21]} 39. Qe3 {[%clk 00:00:17]} {[%emt
00:00:03]} Rh6 {[%clk 00:00:19]} {[%emt 00:00:04]} 40. Bf3 {[%clk 00:00:18]}
Qd8 {[%clk 00:00:19]} {[%emt 00:00:03]} 41. Qe5 {[%clk 00:00:20]} {[%emt
00:00:03]} Rg6 {[%clk 00:00:19]} {[%emt 00:00:03]} 42. Bh5 {[%clk 00:00:21]} f6
{[%clk 00:00:18]} {[%emt 00:00:11]} 43. Bxg6+ {[%clk 00:00:22]} Kxg6 {[%clk
00:00:20]} 44. Qc5 {[%clk 00:00:24]} {[%emt 00:00:20]} e5 {[%clk 00:00:21]} 45.
Bf2 {[%clk 00:00:26]} Qd2 {[%clk 00:00:22]} 46. Qb6 {[%clk 00:00:25]} {[%emt
00:00:04]} f4 {[%clk 00:00:22]} 47. gxf4 {[%clk 00:00:26]} Qxf4+ {[%clk
00:00:23]} 48. Kg1 {[%clk 00:00:29]} Qc1+ {[%clk 00:00:24]} 49. Kg2 {[%clk
00:00:31]} Qc2 {[%clk 00:00:25]} 50. h4 {[%clk 00:00:26]} {[%emt 00:00:04]}
Qe4+ {[%clk 00:00:26]} {[%emt 00:00:04]} 51. Kg1 {[%clk 00:00:28]} Qg4+ {[%clk
00:00:27]} 52. Kf1 {[%clk 00:00:30]} {[%emt 00:00:04]} Qf3 {[%clk 00:00:28]} 53.
Qe3 {[%clk 00:00:30]} {[%emt 00:00:03]} Qh1+ {[%clk 00:00:28]} 54. Ke2 {[%clk
00:00:33]} {[%emt 00:00:04]} Qd5 {[%clk 00:00:29]} 55. Qd3+ {[%clk 00:00:35]}
{[%emt 00:00:07]} Qxd3+ {[%clk 00:00:31]} 56. Kxd3 {[%clk 00:00:37]} f5 {[%clk
00:00:30]} {[%emt 00:00:04]} 57. b4 {[%clk 00:00:39]} 1-0

[Event "Open Mancomunitat de la Ribera Alta (Sumacàrcer)"]
[Site "Sumacàrcer, Spain"]
[Date "2018.11.18"]
[Round "6.2"]
[White "Toledano Llinares, Juan A."]
[Black "Ibanez Aullana, Ramon"]
[Result "1-0"]
[TimeControl "5m+3s"]
[WhiteElo "2258"]
[BlackElo "2282"]

1. f4 {[%clk 00:05:04]} {[%emt 00:00:05]} d5 {[%clk 00:05:02]} {[%emt
00:00:12]} 2. Nf3 {[%clk 00:05:04]} g6 {[%clk 00:05:03]} 3. e3 {[%clk
00:04:58]} {[%emt 00:00:06]} Bg7 {[%clk 00:05:05]} {[%emt 00:00:04]} 4. d4
{[%clk 00:04:56]} {[%emt 00:00:04]} Nf6 {[%clk 00:05:05]} {[%emt 00:00:07]} 5.
c4 {[%clk 00:04:55]} {[%emt 00:00:04]} e6 {[%clk 00:04:28]} {[%emt 00:00:32]} 6.
Nc3 {[%clk 00:04:53]} {[%emt 00:00:11]} O-O {[%clk 00:04:29]} {[%emt 00:00:09]}
7. b3 {[%clk 00:04:46]} c5 {[%clk 00:04:27]} {[%emt 00:00:04]} 8. Bb2 {[%clk
00:04:41]} {[%emt 00:00:09]} Nc6 {[%clk 00:04:17]} {[%emt 00:00:12]} 9. Be2
{[%clk 00:04:04]} {[%emt 00:00:38]} Ng4 {[%clk 00:04:17]} {[%emt 00:00:24]} 10.
Qd2 {[%clk 00:04:02]} Nxe3 {[%clk 00:04:19]} 11. Qxe3 {[%clk 00:03:18]} {[%emt
00:00:31]} cxd4 {[%clk 00:04:20]} {[%emt 00:00:14]} 12. Qd2 {[%clk 00:03:20]}
dxc3 {[%clk 00:04:17]} {[%emt 00:00:05]} 13. Bxc3 {[%clk 00:03:21]} dxc4 {[%clk
00:03:53]} {[%emt 00:00:22]} 14. Bxg7 {[%clk 00:03:13]} {[%emt 00:00:07]} Qxd2+
{[%clk 00:03:55]} {[%emt 00:00:31]} 15. Nxd2 {[%clk 00:03:11]} {[%emt
00:00:04]} Kxg7 {[%clk 00:03:57]} 16. Nxc4 {[%clk 00:03:13]} b5 {[%clk
00:03:59]} 17. Nd6 {[%clk 00:03:10]} Nd4 {[%clk 00:03:56]} 18. Rd1 {[%clk
00:02:47]} {[%emt 00:00:14]} Nxe2 {[%clk 00:03:41]} {[%emt 00:00:17]} 19. Kxe2
{[%clk 00:02:49]} {[%emt 00:00:31]} e5 {[%clk 00:03:10]} {[%emt 00:00:06]} 20.
Kf3 {[%clk 00:02:50]} {[%emt 00:00:03]} exf4 {[%clk 00:02:57]} {[%emt
00:00:15]} 21. Kxf4 {[%clk 00:02:49]} {[%emt 00:00:05]} Bd7 {[%clk 00:02:51]}
{[%emt 00:00:07]} 22. Rhe1 {[%clk 00:02:40]} {[%emt 00:00:17]} Bc6 {[%clk
00:02:51]} 23. Rc1 {[%clk 00:02:25]} {[%emt 00:00:21]} Bxg2 {[%clk 00:02:42]}
{[%emt 00:00:09]} 24. Re7 {[%clk 00:02:24]} {[%emt 00:00:08]} Rad8 {[%clk
00:01:27]} {[%emt 00:01:12]} 25. Ke5 {[%clk 00:02:23]} {[%emt 00:00:15]} Kg8
{[%clk 00:01:09]} {[%emt 00:00:09]} 26. Rcc7 {[%clk 00:02:25]} {[%emt
00:00:42]} a6 {[%clk 00:00:54]} {[%emt 00:00:03]} 27. Nxf7 {[%clk 00:02:22]}
Rde8 {[%clk 00:00:30]} {[%emt 00:00:07]} 28. Nd6 {[%clk 00:00:49]} {[%emt
00:01:36]} Rxe7+ {[%clk 00:00:31]} {[%emt 00:00:09]} 29. Rxe7 {[%clk 00:00:50]}
Rf5+ {[%clk 00:00:32]} {[%emt 00:00:03]} 30. Nxf5 {[%clk 00:00:51]} gxf5 {[%clk
00:00:35]} 31. Kxf5 {[%clk 00:00:52]} {[%emt 00:00:03]} Kf8 {[%clk 00:00:33]}
{[%emt 00:00:04]} 32. Rxh7 {[%clk 00:00:53]} {[%emt 00:00:05]} b4 {[%clk
00:00:35]} 33. Kf6 {[%clk 00:00:53]} Ke8 {[%clk 00:00:35]} {[%emt 00:00:04]} 34.
Ra7 {[%clk 00:00:51]} {[%emt 00:00:06]} Bf1 {[%clk 00:00:37]} 35. Ke6 {[%clk
00:00:52]} {[%emt 00:00:03]} Kf8 {[%clk 00:00:36]} {[%emt 00:00:04]} 36. h4
{[%clk 00:00:53]} Kg8 {[%clk 00:00:38]} {[%emt 00:00:04]} 37. h5 {[%clk
00:00:55]} Be2 {[%clk 00:00:39]} 38. h6 {[%clk 00:00:56]} {[%emt 00:00:12]} Bd3
{[%clk 00:00:41]} 39. Kf6 {[%clk 00:00:57]} Kh8 {[%clk 00:00:42]} {[%emt
00:00:04]} 40. Rb7 {[%clk 00:00:57]} Bb5 {[%clk 00:00:44]} 41. h7 {[%emt
00:00:21]} 1-0